bitfinex/quotes_ETHUSD_20230904
["timestamp","ask_amount","ask_price","bid_price","bid_amount"]
[1693859626407,1.878,1629.6,1629.5,15.34071426]
[1693859626606,1.878,1629.6,1629.5,9.20386426]
[1693859627593,1.878,1629.6,1629.1,0.51216912]
[1693859627799,1.878,1629.6,1629.2,5.06701426]
[1693859627800,1.878,1629.4,1629.2,5.06701426]
[1693859629607,1.878,1629.4,1629.2,3.06701426]
[1693859631769,1.878,1629.4,1629.2,15.34271426]
[1693859632030,1.878,1629.3,1629.2,6.13779]
[1693859632737,1.878,1629.3,1629.2,6.67122537]
[1693859634519,1.878,1629.3,1629.2,0.53343537]
[1693859634724,1.878,1629.3,1628.9,30.45]
[1693859634907,1.878,1629.0,1628.9,33.51701426]
[1693859635106,1.878,1629.0,1628.9,3.06701426]
[1693859635938,1.878,1629.1,1628.9,3.06701426]
[1693859636503,1.878,1629.0,1628.9,3.06701426]
[1693859636703,1.878,1629.0,1628.9,15.34491426]
[1693859638504,1.878,1629.1,1628.9,15.34491426]
[1693859640340,1.878,1629.2,1629.0,3.06701426]
[1693859640540,4.02576632,1629.3,1629.0,3.06701426]
[1693859640714,1.878,1629.3,1629.0,3.06701426]
[1693859641037,1.878,1629.3,1629.0,4.18759469]
[1693859641238,1.878,1629.3,1629.0,3.06701426]
[1693859643240,1.878,1629.2,1629.0,3.06701426]
[1693859645359,1.878,1629.2,1629.1,12.2767]
[1693859646130,1.878,1629.2,1629.1,6.13835]
[1693859647734,1.878,1629.2,1629.1,6.67256904]
[1693859647939,2.54821663,1629.2,1629.1,6.67256904]
[1693859648752,2.54821663,1629.2,1629.1,0.53421904]
[1693859648958,8.68619663,1629.2,1629.1,0.53421904]
[1693859649252,8.68619663,1629.2,1628.7,3.61035932]
[1693859649470,1.878,1628.9,1628.7,3.61035932]
[1693859649656,1.878,1628.9,1628.7,2.64927657]
[1693859650152,1.878,1628.8,1628.7,0.0071301]
[1693859650352,1.878,1628.8,1628.7,6.1468801]
[1693859652844,2.53961,1628.8,1628.7,0.0071301]
[1693859653047,20.95805,1628.8,1628.7,0.0071301]
[1693859653660,23.10647551,1628.8,1628.7,0.0071301]
[1693859653982,23.10647551,1628.8,1628.6,0.1]
[1693859654186,1.878,1628.7,1628.6,0.1]
[1693859654359,22.90822755,1628.7,1628.6,0.1]
[1693859654956,1.94882122,1628.5,1628.4,0.1]
[1693859656455,5.70482122,1628.5,1628.4,0.1]
[1693859656655,5.70482122,1628.5,1628.4,6.24099]
[1693859658104,4.59082122,1628.5,1628.4,6.24099]
[1693859658272,5.66392934,1628.5,1628.4,6.24099]
[1693859662675,5.66392934,1628.5,1628.4,6.75674678]
[1693859663504,5.66392934,1628.5,1628.4,0.61575678]
[1693859673924,4.59082122,1628.5,1628.4,0.61575678]
[1693859677617,13.37344122,1628.5,1628.4,0.61575678]
[1693859678553,11.42462,1628.5,1628.4,0.61575678]
[1693859678721,1.53332832,1628.3,1628.2,0.1]
[1693859678917,1.53332832,1628.3,1628.2,6.2416]
[1693859678918,4.17532832,1628.3,1628.2,6.2416]
[1693859680228,4.59286115,1628.3,1628.2,6.2416]
[1693859681656,4.59286115,1628.3,1628.2,0.1]
[1693859681864,16.87560115,1628.3,1628.2,0.1]
[1693859682965,9.98023115,1628.3,1628.2,0.1]
[1693859683266,3.42132832,1628.3,1628.2,0.1]
[1693859684350,3.42132832,1628.3,1628.2,6.24175]
[1693859684667,3.42132832,1628.3,1628.2,0.1]
[1693859686395,3.42132832,1628.3,1628.2,0.59503043]
[1693859690369,3.42132832,1628.3,1628.2,6.73678043]
[1693859691072,1.53332832,1628.3,1628.2,6.73678043]
[1693859691980,1.888,1628.4,1628.2,9.80379469]
[1693859692144,1.888,1628.3,1628.2,9.80379469]
[1693859693280,1.888,1628.3,1628.2,10.44594116]
[1693859695271,1.888,1628.3,1628.2,11.40702391]
[1693859696583,1.888,1628.3,1628.2,10.76487744]
[1693859698277,1.888,1628.3,1628.2,18.1885497]
[1693859700407,1.888,1628.3,1628.2,7.69786318]
[1693859700686,1.888,1628.3,1628.2,1.55611318]
[1693859703661,1.888,1628.3,1628.2,7.69786318]
[1693859711097,1.888,1628.4,1628.2,7.69786318]
[1693859711279,1.888,1628.4,1628.3,0.64428782]
[1693859711478,6.30162122,1628.5,1628.3,2.10021184]
[1693859712600,1.888,1628.4,1628.3,2.10021184]
[1693859714196,1.888,1628.4,1628.3,1.13912909]
[1693859716301,1.888,1628.4,1628.3,7.28049909]
[1693859724289,2.51816212,1628.4,1628.3,7.28049909]
[1693859724984,20.94113212,1628.4,1628.3,0.49484127]
[1693859725670,1.65424383,1628.3,1628.2,0.1]
[1693859725870,13.93698383,1628.3,1628.2,0.1]
[1693859726103,16.35713453,1628.3,1628.2,0.1]
[1693859726269,3.0,1628.1,1628.0,0.64428782]
[1693859726471,3.0,1628.1,1627.8,0.64428782]
[1693859726472,14.173,1628.0,1627.8,0.64428782]
[1693859726671,9.44829,1627.9,1627.7,0.74428782]
[1693859726976,1.888,1627.8,1627.7,0.74428782]
[1693859727190,1.888,1627.8,1627.7,0.64428782]
[1693859727772,1.888,1627.8,1627.6,1.6710524]
[1693859727990,1.888,1627.7,1627.6,1.6710524]
[1693859728309,1.888,1627.7,1627.6,0.06568183]
[1693859728507,8.834772,1627.7,1627.6,0.06568183]
[1693859728809,14.978402,1627.7,1627.6,0.06568183]
[1693859729406,10.98464915,1627.7,1627.6,0.06568183]
[1693859729782,17.12827915,1627.7,1627.6,0.06568183]
[1693859729980,10.98464915,1627.7,1627.6,0.06568183]
[1693859731177,4.84101915,1627.7,1627.6,0.06568183]
[1693859731377,4.03787715,1627.7,1627.6,0.06568183]
[1693859731995,5.05311415,1627.7,1627.6,0.06568183]
[1693859732882,5.05311415,1627.7,1627.6,0.0690575]
[1693859734723,4.03787715,1627.7,1627.6,0.0690575]
[1693859735321,2.14987715,1627.7,1627.6,0.0690575]
[1693859735990,4.03787715,1627.7,1627.6,0.0690575]
[1693859736325,4.03787715,1627.7,1627.6,12.3570775]
[1693859741415,4.44166487,1627.7,1627.6,6.2130675]
[1693859741617,4.44166487,1627.7,1627.6,0.0690575]
[1693859748504,4.03787715,1627.7,1627.6,0.0690575]
[1693859762553,4.03787715,1627.7,1627.6,6.2130675]
[1693859764958,4.03787715,1627.7,1627.6,0.0690575]
[1693859764959,4.39801793,1627.7,1627.6,0.0690575]
[1693859767474,22.82890793,1627.7,1627.6,0.0690575]
[1693859770972,29.02457824,1627.7,1627.6,0.0690575]
[1693859771265,35.13861606,1627.7,1627.6,0.0690575]
[1693859772247,38.20563032,1627.7,1627.6,0.0690575]
[1693859772851,38.20563032,1627.7,1627.6,0.06568183]
[1693859773260,28.99498606,1627.7,1627.6,0.06568183]
[1693859774052,22.85135606,1627.7,1627.6,0.06568183]
[1693859774473,28.99498606,1627.7,1627.6,0.06568183]
[1693859776579,22.79931575,1627.7,1627.6,0.06568183]
[1693859778950,22.79931575,1627.7,1627.6,0.0690575]
[1693859780245,28.94294575,1627.7,1627.6,0.0690575]
[1693859780970,28.94294575,1627.7,1627.6,0.06568183]
[1693859781982,28.94294575,1627.7,1627.6,0.0690575]
[1693859787596,28.94294575,1627.7,1627.6,0.1310575]
[1693859796904,32.00996001,1627.7,1627.6,0.1310575]
[1693859797204,45.4201827,1627.7,1627.6,0.1310575]
[1693859797901,45.4201827,1627.7,1627.6,0.12768183]
[1693859798274,46.05992657,1627.7,1627.6,0.12768183]
[1693859798486,39.86321883,1627.7,1627.6,0.12768183]
[1693859798688,43.91071431,1627.7,1627.6,0.12768183]
[1693859798886,2.05040551,1627.3,1627.1,6.2457]
[1693859799109,8.19560551,1627.3,1627.1,6.2457]
[1693859799298,1.888,1627.2,1627.1,6.2457]
[1693859799470,2.21873078,1627.2,1627.1,6.2457]
[1693859799899,2.21873078,1627.2,1627.1,6.2491173]
[1693859801074,2.16873078,1627.2,1627.1,6.2491173]
[1693859804212,2.16873078,1627.2,1627.1,0.1034173]
[1693859804415,8.31425078,1627.2,1627.1,0.1034173]
[1693859810491,2.16873078,1627.2,1627.1,0.1034173]
[1693859812833,2.16873078,1627.2,1627.1,0.73836503]
[1693859814345,2.16873078,1627.2,1627.1,6.88426503]
[1693859820440,0.33073078,1627.2,1627.1,6.88426503]
[1693859824640,1.888,1627.4,1627.1,9.95127929]
[1693859825141,0.42696022,1627.2,1627.1,9.95127929]
[1693859825339,1.888,1627.4,1627.1,9.95127929]
[1693859825542,1.888,1627.4,1627.2,0.99512793]
[1693859825841,1.888,1627.4,1627.3,0.00340065]
[1693859827245,1.888,1627.4,1627.3,6.14854065]
[1693859827769,2.31509431,1627.4,1627.3,6.14854065]
[1693859836354,0.42709431,1627.4,1627.3,9.21555491]
[1693859836558,0.42709431,1627.4,1627.3,10.88091101]
[1693859836723,0.42709431,1627.4,1627.3,11.19770594]
[1693859837052,0.42709431,1627.4,1627.3,12.4796282]
[1693859837558,6.3586451,1627.8,1627.3,12.4796282]
[1693859837765,6.3586451,1627.8,1627.4,3.71087755]
[1693859837948,6.3586451,1627.8,1627.5,0.37108776]
[1693859838132,6.3586451,1627.8,1627.5,3.43810202]
[1693859838927,6.3586451,1627.8,1627.6,0.00337567]
[1693859840072,2.1497451,1627.8,1627.6,3.07038993]
[1693859840279,2.1497451,1627.8,1627.7,15.35427426]
[1693859840432,2.1497451,1627.8,1627.7,16.89003925]
[1693859840630,4.0242,1628.0,1627.7,16.89003925]
[1693859842365,2.1362,1628.0,1627.7,16.89003925]
[1693859842953,0.36730611,1627.9,1627.8,0.00335903]
[1693859845331,0.36730611,1627.9,1627.8,6.14661903]
[1693859847065,0.36730611,1627.9,1627.8,10.28857312]
[1693859847867,2.1662,1628.2,1627.8,10.28857312]
[1693859848165,4.03695315,1628.4,1627.9,3.06701426]
[1693859848354,6.28745315,1628.4,1627.9,3.06701426]
[1693859848570,0.34453486,1628.1,1627.9,3.06701426]
[1693859848754,6.28745315,1628.4,1627.9,3.06701426]
[1693859848961,6.28745315,1628.4,1628.0,0.00334239]
[1693859849270,6.28745315,1628.4,1628.1,3.06701426]
[1693859850957,1.888,1628.2,1628.0,0.00334239]
[1693859851162,1.888,1628.2,1628.0,3.07035665]
[1693859856272,1.888,1628.2,1628.1,6.14204]
[1693859856876,1.888,1628.2,1628.1,6.14537407]
[1693859857891,2.23070656,1628.2,1628.1,6.14537407]
[1693859889321,2.70558722,1628.2,1628.1,6.14537407]
[1693859889698,2.70558722,1628.2,1628.1,0.00333407]
[1693859889902,8.84733722,1628.2,1628.1,0.00333407]
[1693859890112,11.09973722,1628.2,1628.1,0.00333407]
[1693859890726,4.95798722,1628.2,1628.1,0.00333407]
[1693859894224,4.95798722,1628.2,1628.1,6.14545407]
[1693859894426,6.0250137,1628.2,1628.1,6.14545407]
[1693859894626,4.95798722,1628.2,1628.1,6.14545407]
[1693859901818,4.48310656,1628.2,1628.1,6.14545407]
[1693859904851,6.18988137,1628.2,1628.1,6.14545407]
[1693859905452,6.18988137,1628.2,1628.1,0.00333407]
[1693859905947,6.18988137,1628.2,1627.8,7.27056279]
[1693859906160,2.449,1628.1,1627.9,3.06701426]
[1693859906521,0.369359,1628.0,1627.9,3.06701426]
[1693859906935,0.369359,1628.0,1627.9,3.07036497]
[1693859909253,0.369359,1628.0,1627.9,9.21316497]
[1693859926173,2.257359,1628.0,1627.9,9.21316497]
[1693859929391,4.582559,1628.0,1627.9,9.21316497]
[1693859933307,2.694559,1628.0,1627.9,9.21316497]
[1693859952130,2.694559,1628.0,1627.9,9.85702826]
[1693859974558,2.694559,1628.0,1627.9,6.790014]
[1693859974762,2.694559,1628.0,1627.9,6.14615071]
[1693859978551,2.694559,1628.0,1627.9,12.28895071]
[1693859982083,3.3977149,1628.0,1627.9,12.28895071]
[1693859982284,3.3977149,1628.0,1627.9,0.00335071]
[1693859982285,7.1737149,1628.0,1627.9,0.00335071]
[1693859982455,13.3162149,1628.0,1627.9,0.00335071]
[1693859982656,7.1737149,1628.0,1627.9,0.00335071]
[1693859982956,7.1737149,1628.0,1627.7,0.64386329]
[1693859983287,1.888,1627.8,1627.7,0.64386329]
[1693859983855,3.9911,1627.8,1627.7,0.64386329]
[1693859984063,3.9911,1627.8,1627.7,0.64709982]
[1693859986191,3.9911,1627.8,1627.7,12.93410982]
[1693859986762,3.9911,1627.8,1627.7,12.29024653]
[1693859992701,4.35622156,1627.8,1627.7,12.29024653]
[1693859995411,5.11434086,1627.8,1627.7,12.29024653]
[1693859995776,5.11434086,1627.8,1627.7,0.00323653]
[1693859997072,5.11434086,1627.8,1627.6,0.49384536]
[1693859997291,1.888,1627.7,1627.4,1.60494604]
[1693859997473,4.1539,1627.6,1627.4,0.64386329]
[1693859997916,4.1539,1627.6,1627.5,0.00325318]
[1693859998081,4.83289,1627.6,1627.5,0.00325318]
[1693859999176,4.83289,1627.6,1627.5,12.29169318]
[1693859999379,4.1539,1627.6,1627.5,12.29169318]
[1693860001516,4.1539,1627.6,1627.5,6.14730318]
[1693860001907,4.1539,1627.6,1627.5,0.00325318]
[1693860003011,4.1539,1627.6,1627.2,5.09542834]
[1693860003197,6.6319,1627.5,1627.2,8.1624426]
[1693860003894,6.6319,1627.5,1627.3,0.00326983]
[1693860005204,6.6319,1627.5,1627.4,6.14441]
[1693860005995,6.6319,1627.5,1627.4,6.1476715]
[1693860007829,6.98488367,1627.5,1627.4,6.1476715]
[1693860022852,0.35298367,1627.5,1627.4,6.76243865]
[1693860023149,1.888,1627.8,1627.4,9.82945291]
[1693860023354,4.3523,1627.8,1627.4,9.82945291]
[1693860023520,0.35255549,1627.7,1627.4,9.82945291]
[1693860024455,0.35255549,1627.7,1627.4,10.4733162]
[1693860024651,0.35255549,1627.7,1627.5,1.04733162]
[1693860025020,0.35255549,1627.7,1627.5,1.0505848]
[1693860025731,0.35255549,1627.7,1627.6,6.14401]
[1693860026658,4.3523,1627.8,1627.6,6.14401]
[1693860026864,1.888,1627.7,1627.6,6.14401]
[1693860027059,2.22962744,1627.7,1627.6,6.14401]
[1693860029133,2.22962744,1627.7,1627.6,6.14725485]
[1693860037547,2.44954653,1627.7,1627.6,6.14725485]
[1693860041686,4.75674653,1627.7,1627.6,6.14725485]
[1693860043182,2.86874653,1627.7,1627.6,6.14725485]
[1693860053432,4.75674653,1627.7,1627.6,6.14725485]
[1693860053633,0.56154653,1627.7,1627.6,10.53724421]
[1693860054004,2.14948105,1628.0,1627.6,10.85446367]
[1693860054207,2.14948105,1628.0,1627.7,4.67257061]
[1693860054411,0.56108706,1627.9,1627.7,4.67257061]
[1693860054635,0.56108706,1627.9,1627.8,1.11173066]
[1693860054838,0.56108706,1627.9,1627.8,4.17874492]
[1693860055008,0.56108706,1627.9,1627.8,4.18233472]
[1693860055816,2.14921707,1628.2,1627.8,4.18233472]
[1693860056110,2.14921707,1628.2,1627.9,3.06701426]
[1693860058305,2.14921707,1628.2,1628.0,12.285]
[1693860058509,2.14921707,1628.2,1628.0,16.88721569]
[1693860058916,2.14921707,1628.2,1628.1,0.00356478]
[1693860059116,2.80909303,1628.4,1628.1,3.07057904]
[1693860059117,1.888,1628.4,1628.1,3.07057904]
[1693860059320,4.03697202,1628.4,1628.1,3.07057904]
[1693860060108,4.03697202,1628.4,1628.2,3.06701426]
[1693860060338,2.14897202,1628.4,1628.2,3.06701426]
[1693860060738,6.7869,1628.6,1628.2,5.06701426]
[1693860060912,6.7869,1628.6,1628.3,0.50670143]
[1693860061243,6.7869,1628.6,1628.3,3.57371569]
[1693860063051,6.7869,1628.6,1628.4,0.00353976]
[1693860063937,6.7869,1628.6,1628.3,3.57371569]
[1693860064141,6.7869,1628.6,1628.5,12.28124]
[1693860067029,6.7869,1628.6,1628.5,12.28477143]
[1693860067663,7.30948511,1628.6,1628.5,12.28477143]
[1693860070361,0.52258511,1628.6,1628.5,13.51324857]
[1693860070568,0.52258511,1628.6,1628.5,16.58026283]
[1693860071263,6.6336,1628.8,1628.5,16.58026283]
[1693860073131,6.6336,1628.8,1628.6,3.06701426]
[1693860073338,6.6336,1628.8,1628.6,5.06701426]
[1693860073554,4.13729364,1628.9,1628.7,0.50670143]
[1693860073755,6.28669364,1628.9,1628.6,5.06701426]
[1693860073962,6.28669364,1628.9,1628.8,0.00350642]
[1693860075078,6.28669364,1628.9,1628.6,5.06701426]
[1693860075374,6.28669364,1628.9,1628.8,6.13948]
[1693860075669,4.39869364,1628.9,1628.8,6.13948]
[1693860075850,4.39869364,1628.9,1628.8,6.753428]
[1693860076737,6.28669364,1628.9,1628.8,6.753428]
[1693860076950,6.28669364,1628.9,1628.8,6.13948]
[1693860078038,6.28669364,1628.9,1628.8,6.14298642]
[1693860079438,4.39869364,1628.9,1628.8,6.14298642]
[1693860080639,2.2504,1628.9,1628.8,6.14298642]
[1693860081953,0.101,1628.9,1628.8,9.21000068]
[1693860082174,0.101,1629.1,1628.8,15.13100075]
[1693860082374,0.101,1629.1,1629.0,2.0]
[1693860082576,0.101,1629.1,1629.0,5.06701426]
[1693860082809,0.62319517,1629.1,1629.0,5.57371569]
[1693860083084,0.62319517,1629.1,1629.0,5.57720545]
[1693860086281,0.62319517,1629.1,1629.0,11.71593545]
[1693860088868,0.101,1629.2,1629.0,15.19593545]
[1693860089083,0.101,1629.3,1629.1,3.54701426]
[1693860089408,0.101,1629.3,1629.2,0.35470143]
[1693860089706,0.101,1629.3,1629.2,3.42171569]
[1693860090094,0.101,1629.3,1629.2,3.42518879]
[1693860092281,0.101,1629.3,1629.2,9.56316879]
[1693860093107,0.101,1629.3,1629.2,10.04316879]
[1693860095081,0.101,1629.4,1629.2,16.93116879]
[1693860095392,0.101,1629.5,1629.4,2.0]
[1693860095711,0.101,1629.5,1629.4,5.54701426]
[1693860095911,0.101,1629.5,1629.4,5.5504707]
[1693860096086,0.101,1629.5,1629.4,8.5504707]
[1693860096284,0.101,1629.5,1629.4,10.73884946]
[1693860097724,0.101,1629.6,1629.4,15.76880946]
[1693860098018,0.101,1629.6,1629.5,15.39401426]
[1693860098815,0.101,1629.6,1629.5,17.28201426]
[1693860098979,0.101,1629.6,1629.5,20.63426769]
[1693860099601,0.101,1629.7,1629.6,5.0]
[1693860099804,0.101,1629.7,1629.6,11.06701426]
[1693860100011,0.101,1629.7,1629.6,11.07045405]
[1693860100919,0.101,1629.9,1629.6,11.07045405]
[1693860100920,0.101,1629.9,1629.8,2.0]
[1693860101216,0.101,1629.9,1629.8,5.06701426]
[1693860101416,0.5487828,1629.9,1629.8,3.87371569]
[1693860101791,0.5487828,1629.9,1629.8,6.87371569]
[1693860102624,0.5487828,1629.9,1629.8,8.87371569]
[1693860103917,0.5487828,1629.9,1629.8,8.87713883]
[1693860108132,0.5487828,1629.9,1629.8,8.0704374]
[1693860114603,0.5487828,1629.9,1629.8,8.0204374]
[1693860121315,2.4367828,1629.9,1629.8,0.00342314]
[1693860121903,2.4367828,1629.9,1629.4,0.14196]
[1693860121904,20.8428028,1629.9,1629.4,0.14196]
[1693860122103,4.30228028,1629.8,1629.2,30.45]
[1693860122329,1.888,1629.4,1629.3,5.06701426]
[1693860122930,1.888,1629.4,1629.3,5.0709999]
[1693860124014,1.888,1629.4,1629.3,6.0709999]
[1693860124542,1.888,1629.4,1629.3,8.0709999]
[1693860125747,1.888,1629.4,1629.3,6.0709999]
[1693860127246,1.888,1629.4,1629.3,3.00398564]
[1693860127454,1.888,1629.4,1629.3,0.00398564]
[1693860127455,2.2656,1629.4,1629.3,0.00398564]
[1693860127745,2.72016851,1629.4,1629.3,0.00398564]
[1693860127946,5.21056851,1629.4,1629.3,0.00398564]
[1693860128148,5.21056851,1629.4,1629.1,2.0]
[1693860128442,1.888,1629.2,1629.1,2.0]
[1693860129047,1.888,1629.2,1629.1,2.003643]
[1693860130364,1.888,1629.2,1629.1,8.141993]
[1693860142578,2.34171014,1629.2,1629.1,8.141993]
[1693860169815,2.34171014,1629.2,1629.1,8.7864666]
[1693860173004,2.34171014,1629.2,1629.1,9.74754935]
[1693860182815,2.34171014,1629.2,1629.1,9.10307575]
[1693860194192,2.34171014,1629.2,1629.1,9.74768089]
[1693860198671,2.34171014,1629.2,1629.1,9.10307575]
[1693860198872,2.34171014,1629.2,1629.1,9.74767954]
[1693860206582,2.34171014,1629.2,1629.1,9.10307575]
[1693860231398,0.45371014,1629.2,1629.1,9.10307575]
[1693860231897,2.58941014,1629.2,1629.1,9.10307575]
[1693860233621,2.58941014,1629.2,1629.1,7.74772069]
[1693860233787,4.92515115,1629.2,1629.1,6.141993]
[1693860233991,11.06313115,1629.2,1629.0,3.1]
[1693860234200,17.20111115,1629.2,1629.0,3.1]
[1693860234528,1.888,1629.1,1629.0,3.1]
[1693860234732,10.58201505,1629.1,1629.0,3.1]
[1693860235016,6.591695,1629.1,1629.0,3.1]
[1693860237519,6.591695,1629.1,1629.0,9.23873]
[1693860244626,2.5796091,1629.1,1629.0,9.23873]
[1693860244801,2.5796091,1629.1,1629.0,12.30574426]
[1693860252136,2.5796091,1629.1,1629.0,9.23873]
[1693860252310,4.4676091,1629.1,1629.0,9.23873]
[1693860252911,4.03602995,1629.1,1629.0,9.23873]
[1693860253435,4.44331482,1629.1,1629.0,9.23873]
[1693860255240,5.3661063,1629.1,1629.0,9.23873]
[1693860259330,4.44331482,1629.1,1629.0,9.23873]
[1693860302879,4.44331482,1629.1,1629.0,3.1]
[1693860306585,4.44331482,1629.1,1629.0,9.23873]
[1693860325943,7.51032908,1629.1,1628.8,0.64464494]
[1693860326146,4.60545887,1628.9,1628.3,0.6447975]
[1693860326432,12.92313275,1628.6,1628.3,0.6447975]
[1693860326648,3.0,1628.5,1628.1,0.6447975]
[1693860326939,1.888,1628.2,1628.0,0.6447975]
[1693860327135,1.888,1628.1,1628.0,0.6447975]
[1693860328743,1.888,1628.1,1627.9,0.7447975]
[1693860329911,1.888,1628.0,1627.9,0.1]
[1693860332814,2.04961307,1627.9,1627.6,5.19620884]
[1693860333017,1.888,1627.8,1627.6,7.77289451]
[1693860333324,1.888,1627.8,1627.6,6.81181176]
[1693860333544,1.888,1627.8,1627.6,6.16701426]
[1693860334239,0.53135765,1627.7,1627.6,6.16701426]
[1693860334636,1.888,1627.8,1627.6,6.16701426]
[1693860335049,1.888,1627.8,1627.6,0.1]
[1693860335251,2.41935765,1627.7,1627.6,0.1]
[1693860336035,1.888,1627.7,1627.6,0.1]
[1693860336228,2.41922977,1627.7,1627.6,0.1]
[1693860340939,3.27548075,1627.7,1627.6,0.1]
[1693860341373,2.41922977,1627.7,1627.6,0.1]
[1693860377732,2.41922977,1627.7,1627.6,0.7447975]
[1693860377930,2.41922977,1627.7,1627.6,0.1]
[1693860378500,2.41922977,1627.7,1627.6,0.7447975]
[1693860383357,2.41922977,1627.7,1627.6,1.70588025]
[1693860385637,2.41922977,1627.7,1627.6,1.06108275]
[1693860407378,4.68602977,1627.7,1627.6,1.06108275]
[1693860408453,4.68602977,1627.7,1627.6,1.70628234]
[1693860409680,4.68602977,1627.7,1627.6,1.06108275]
[1693860409981,4.68602977,1627.7,1627.6,1.70626435]
[1693860410279,4.68602977,1627.7,1627.6,1.06108275]
[1693860410894,4.68602977,1627.7,1627.6,1.70625654]
[1693860413173,4.68602977,1627.7,1627.6,1.06108275]
[1693860413682,4.68602977,1627.7,1627.6,1.70624778]
[1693860414279,4.68602977,1627.7,1627.6,0.74516503]
[1693860422784,4.68602977,1627.7,1627.6,1.53021081]
[1693860422950,0.53122977,1627.7,1627.6,10.1219823]
[1693860423150,0.92126274,1628.1,1627.6,10.73480972]
[1693860423352,0.92126274,1628.1,1628.0,2.0]
[1693860423581,3.49410367,1628.4,1628.0,6.06701426]
[1693860423582,0.64236275,1628.3,1628.0,6.06701426]
[1693860423781,2.6997,1628.3,1628.0,3.06701426]
[1693860423994,0.4599721,1628.2,1628.0,3.06701426]
[1693860427181,0.4599721,1628.2,1628.0,9.20951426]
[1693860427413,2.6631721,1628.2,1628.0,10.13046569]
[1693860428221,0.4599721,1628.2,1628.0,10.13046569]
[1693860434135,0.4599721,1628.2,1628.1,3.06701426]
[1693860434793,2.14895315,1628.4,1628.1,3.06701426]
[1693860435128,0.46217803,1628.3,1628.1,3.06701426]
[1693860439328,0.46217803,1628.3,1628.1,4.08006083]
[1693860444232,2.1034,1628.5,1628.1,4.08006083]
[1693860444635,0.44311874,1628.4,1628.1,4.08006083]
[1693860449514,0.44311874,1628.4,1628.1,6.08006083]
[1693860453854,0.44311874,1628.4,1628.3,2.0]
[1693860454055,0.44311874,1628.4,1628.3,5.06701426]
[1693860454356,2.284,1628.7,1628.3,10.95051569]
[1693860454658,2.284,1628.7,1628.4,3.06701426]
[1693860457691,0.44318102,1628.6,1628.4,3.06701426]
[1693860462963,3.14548102,1628.6,1628.4,3.06701426]
[1693860487466,1.888,1628.5,1628.1,1.61225445]
[1693860487774,1.888,1628.4,1628.1,0.64490178]
[1693860487949,6.7585,1628.4,1628.1,0.64490178]
[1693860488131,7.16229522,1628.4,1628.1,0.64490178]
[1693860488338,8.12486167,1628.4,1628.1,0.64490178]
[1693860492317,5.27429522,1628.4,1628.1,5.71191604]
[1693860511091,5.27429522,1628.4,1628.1,2.0]
[1693860511390,7.16229522,1628.4,1628.1,2.0]
[1693860511597,7.16229522,1628.4,1628.1,5.0]
[1693860523606,5.27429522,1628.4,1628.1,5.0]
[1693860523904,5.27429522,1628.4,1628.1,5.64490178]
[1693860524093,5.27429522,1628.4,1628.1,5.0]
[1693860524411,6.20540686,1628.4,1628.0,0.64490178]
[1693860524575,8.09340686,1628.4,1628.0,3.71191604]
[1693860532912,2.2377,1628.3,1628.0,3.71191604]
[1693860533311,0.39050665,1628.2,1628.0,4.67926871]
[1693860533512,2.87310665,1628.2,1628.0,4.67926871]
[1693860534319,5.00080665,1628.2,1628.0,4.67926871]
[1693860534981,5.00080665,1628.2,1628.0,3.71191604]
[1693860538714,0.39050665,1628.2,1628.1,3.71191604]
[1693860539093,2.1490851,1628.3,1628.1,3.71191604]
[1693860539495,0.39050665,1628.2,1628.1,3.71191604]
[1693860541937,6.65e-06,1628.2,1628.1,6.67926871]
[1693860542101,2.1490851,1628.3,1628.1,12.1776768]
[1693860542307,2.1490851,1628.3,1628.2,8.07421763]
[1693860542518,2.4509,1628.7,1628.3,2.0]
[1693860542699,2.4509,1628.7,1628.4,3.71129487]
[1693860543104,0.3489758,1628.6,1628.4,3.71129487]
[1693860546343,0.3489758,1628.6,1628.4,3.06701426]
[1693860551060,0.3489758,1628.6,1628.5,4.888]
[1693860551359,2.1933,1628.9,1628.5,8.75051569]
[1693860551537,2.1933,1628.9,1628.6,3.06701426]
[1693860551735,0.3290227,1628.8,1628.6,3.06701426]
[1693860552079,2.1933,1628.9,1628.6,3.06701426]
[1693860562663,0.31363743,1628.8,1628.6,3.06701426]
[1693860562869,0.31363743,1628.8,1628.6,3.95326583]
[1693860563054,2.1933,1628.9,1628.6,3.95326583]
[1693860565843,2.1933,1628.9,1628.6,4.43341419]
[1693860570176,2.1933,1628.9,1628.6,3.06701426]
[1693860570586,2.1933,1628.9,1628.5,5.0]
[1693860570769,2.5243,1628.8,1628.5,5.06701426]
[1693860571142,2.1011,1628.7,1628.5,5.06701426]
[1693860577667,0.31363071,1628.6,1628.5,5.06701426]
[1693860577873,0.31363071,1628.6,1628.5,8.92257646]
[1693860578073,2.1011,1628.7,1628.5,8.92257646]
[1693860578574,0.31363071,1628.6,1628.5,5.8555622]
[1693860579206,2.5243,1628.8,1628.5,5.8555622]
[1693860579507,0.31363071,1628.6,1628.5,5.8555622]
[1693860579886,2.5243,1628.8,1628.5,5.8555622]
[1693860580087,2.5243,1628.8,1628.6,3.65257048]
[1693860580295,2.2931,1628.9,1628.6,3.65257048]
[1693860580504,2.14816556,1629.0,1628.7,3.888]
[1693860580706,2.14816556,1629.0,1628.8,3.06701426]
[1693860581007,4.7941,1629.1,1628.8,3.06701426]
[1693860588072,4.7941,1629.1,1628.8,3.71129487]
[1693860588278,2.2602,1629.1,1628.9,0.37112949]
[1693860588497,2.2602,1629.1,1629.0,3.06701426]
[1693860589009,2.57420351,1629.1,1629.0,3.06701426]
[1693860606640,0.31400351,1629.1,1629.0,3.06701426]
[1693860618887,0.31400351,1629.1,1628.9,2.0]
[1693860619044,0.31400351,1629.1,1628.9,5.06701426]
[1693860625289,0.31400351,1629.1,1628.9,5.71129487]
[1693860632058,0.45310737,1629.1,1628.9,5.71129487]
[1693860632884,2.66240737,1629.1,1628.9,5.71129487]
[1693860638191,4.55040737,1629.1,1628.9,5.71129487]
[1693860638385,0.002662,1629.0,1628.9,5.71129487]
[1693860638761,0.45293291,1629.0,1628.9,5.71129487]
[1693860638963,2.61023291,1629.0,1628.9,5.71129487]
[1693860639481,2.61023291,1629.0,1628.9,2.64428061]
[1693860647013,2.61023291,1629.0,1628.9,2.0]
[1693860667255,4.9480562,1629.0,1628.7,2.09156805]